[Event "GER-ch Youth-U18w 2022"]
[Site "Willingen"]
[Date "2022.06.09"]
[Round "7.8"]
[White "Jacoby, Angelina"]
[Black "Orlova, Alicia"]
[Result "1/2-1/2"]
[ECO "D00"]
[WhiteElo "1535"]
[BlackElo "1724"]
[Annotator "NA RC COMBH"]
[PlyCount "103"]
[EventDate "2022.06.05"]
[EventType "swiss"]
[EventRounds "9"]
[EventCountry "GER"]
[SourceTitle "playchess.com"]
[Source "ChessBase"]
[SourceQuality "1"]
[TimeControl "40/4500+30:900+30"]

1. d4 d5 2. Bf4 Nf6 3. e3 c5 4. c3 Nc6 5. Nf3 e6 6. Nbd2 Nh5 7. Bg5 Be7 8. Bxe7 Qxe7 9. Be2 Nf6 10. O-O e5 11. dxe5 Nxe5 12. Nxe5 Qxe5 13. Nf3 Qc7 14. Qc2 O-O 15. Rac1 b6 16. Rfd1 Bb7 17. Ne1 Rfd8 18. Bf3 Rd6 19. Rd2 Re8 20. Rcd1 Rde6 21. Qc1 Ne4 22. Rd3 Rh6 23. h3 Qe7 24. Bxe4 Qxe4 25. Nf3 Qg6 26. Kh1 d4 27. exd4 Be4 28. Re3 f5 29. Rxe4 fxe4 30. Ne5 Qf5 31. Qe3 Rd6 32. Re1 cxd4 33. cxd4 Red8 34. Kg1 Qe6 35. Nf3 Re8 36. Qa3 Qd7 37. Ne5 Qc7 38. Qb3+ Kf8 39. Rxe4 Rf6 40. Re3 Rd8 41. Rd3 Qc1+ 42. Rd1 Qf4 43. Nf3 Qd6 44. Qc3 Qd5 45. a3 h6 46. Rd3 Rc6 47. Qd2 Rdc8 48. Qf4+ Rf6 49. Qd2 Rfc6 50. Qf4+ Rf6 51. Qd2 Rfc6 52. Qf4+ 1/2-1/2

[Event "GER-ch Youth-U18w 2022"]
[Site "Willingen"]
[Date "2022.06.09"]
[Round "7.9"]
[White "Kosak, Karolina"]
[Black "Albayrak, Nese Pinar"]
[Result "1/2-1/2"]
[ECO "C47"]
[WhiteElo "1471"]
[BlackElo "1683"]
[Annotator "NA RC COMBH"]
[PlyCount "70"]
[EventDate "2022.06.05"]
[EventType "swiss"]
[EventRounds "9"]
[EventCountry "GER"]
[SourceTitle "playchess.com"]
[Source "ChessBase"]
[SourceQuality "1"]
[TimeControl "40/4500+30:900+30"]

1. e4 {[%emt 0:00:00]} e5 {[%emt 0:00:00]} 2. Nf3 {[%emt 0:00:00]} Nc6 {[%emt 0:00:00]} 3. Nc3 {[%emt 0:00:00]} Nf6 {[%emt 0:00:00]} 4. d4 {[%emt 0:00:00]} exd4 {[%emt 0:00:00]} 5. Nxd4 {[%emt 0:00:00]} Bb4 {[%emt 0:00:00]} 6. Nxc6 {[%emt 0:00:00]} bxc6 {[%emt 0:00:00]} 7. Bd3 {[%emt 0:00:00]} O-O {[%emt 0:09:35]} 8. O-O {[%emt 0:00:00]} h6 {[%emt 0:04:09]} 9. h3 {[%emt 0:00:00]} Re8 {[%emt 0:02:10]} 10. Qf3 {[%emt 0:00:00]} d5 {[%emt 0:11:38]} 11. exd5 {[%emt 0:00:00]} cxd5 {[%emt 0:02:01]} 12. Bf4 {[%emt 0:00:00]} Bb7 {[%emt 0:06:16]} 13. Ne2 {[%emt 0:18:10]} c5 {[%emt 0:08:11]} 14. c3 {[%emt 0:11:05]} Ba5 {[%emt 0:01:09]} 15. Bc2 {[%emt 0:01:20]} Qb6 {[%emt 0:11:59]} 16. Rab1 {[%emt 0:31:29]} d4 {[%emt 0:02:37]} 17. Qd3 {[%emt 0:01:56]} Qc6 {[%emt 0:08:31]} 18. f3 {[%emt 0:02:29]} c4 {[%emt 0:04:13]} 19. Qf5 {[%emt 0:02:27]} Rxe2 {[%emt 0:01:53]} 20. Bd1 {[%emt 0:00:42]} d3 {[%emt 0:03:13]} 21. Qxa5 {[%emt 0:02:04]} Re7 {[%emt 0:01:32]} 22. b3 {[%emt 0:00:54]} Nd5 {[%emt 0:03:12]} 23. Bd2 {[%emt 0:00:26]} Qb6+ {[%emt 0:02:37]} 24. Qxb6 {[%emt 0:01:53]} axb6 {[%emt 0:01:02]} 25. bxc4 {[%emt 0:01:00]} Rxa2 {[%emt 0:01:07]} 26. cxd5 {[%emt 0:01:56]} Rxd2 {[%emt 0:00:02]} 27. d6 {[%emt 0:03:31]} Rd7 {[%emt 0:00:35]} 28. Rxb6 {[%emt 0:00:45]} Ra2 {[%emt 0:00:15]} 29. c4 {[%emt 0:02:31]} Ba6 {[%emt 0:01:19]} 30. Rf2 {[%emt 0:04:54]} Ra1 {[%emt 0:00:23]} 31. Rd2 {[%emt 0:00:33]} Bxc4 {[%emt 0:00:06]} 32. Kf2 {[%emt 0:00:48]} f6 {[%emt 0:00:24]} 33. Bb3 {[%emt 0:00:29]} Bxb3 {[%emt 0:01:12]} 34. Rxb3 {[%emt 0:00:04]} Rxd6 {[%emt 0:00:20]} 35. Rbxd3 {[%emt 0:00:32]} Re6 1/2-1/2

[Event "GER-ch Youth-U18w 2022"]
[Site "Willingen"]
[Date "2022.06.09"]
[Round "7.10"]
[White "Mueller, Sophie Charlotte"]
[Black "Gröschel, Karoline"]
[Result "0-1"]
[ECO "E00"]
[WhiteElo "1509"]
[BlackElo "1546"]
[Annotator "NA RC COMBH"]
[PlyCount "160"]
[EventDate "2022.06.05"]
[EventType "swiss"]
[EventRounds "9"]
[EventCountry "GER"]
[SourceTitle "playchess.com"]
[Source "ChessBase"]
[SourceQuality "1"]
[TimeControl "40/4500+30:900+30"]

1. d4 {[%emt 0:00:00]} Nf6 {[%emt 0:00:00]} 2. c4 {[%emt 0:00:00]} e6 {[%emt 0:00:00]} 3. Bg5 {[%emt 0:00:00]} Bb4+ {[%emt 0:00:00]} 4. Nd2 {[%emt 0:00:00]} d5 {[%emt 0:00:00]} 5. e3 {[%emt 0:00:00]} O-O {[%emt 0:00:00]} 6. Ngf3 {[%emt 0:00:00]} h6 {[%emt 0:00:00]} 7. Bh4 {[%emt 0:00:00]} b6 {[%emt 0:00:00]} 8. a3 {[%emt 0:00:00]} Be7 {[%emt 0:00:00]} 9. Be2 {[%emt 0:00:00]} Bb7 {[%emt 0:00:03]} 10. O-O {[%emt 0:00:00]} Nbd7 {[%emt 0:06:59]} 11. Rc1 {[%emt 0:09:59]} c5 {[%emt 0:08:17]} 12. Re1 {[%emt 0:16:55]} Rc8 {[%emt 0:02:42]} 13. Bd3 {[%emt 0:03:54]} cxd4 {[%emt 0:13:08]} 14. Nxd4 {[%emt 0:01:58]} Ne5 {[%emt 0:01:22]} 15. Bf1 {[%emt 0:05:34]} dxc4 {[%emt 0:07:51]} 16. Nxc4 {[%emt 0:01:47]} Nxc4 {[%emt 0:06:30]} 17. Rxc4 {[%emt 0:01:01]} Rxc4 {[%emt 0:01:59]} 18. Bxc4 {[%emt 0:00:02]} Qc7 {[%emt 0:01:07]} 19. Qc2 {[%emt 0:07:39]} Rc8 {[%emt 0:03:48]} 20. Bd3 {[%emt 0:04:19]} Qd7 {[%emt 0:03:36]} 21. Qe2 {[%emt 0:02:03]} Qd5 {[%emt 0:02:45]} 22. f3 {[%emt 0:02:15]} Kf8 {[%emt 0:01:55]} 23. Rd1 {[%emt 0:03:08]} Qc5 {[%emt 0:06:58]} 24. Nb5 {[%emt 0:03:17]} a6 {[%emt 0:02:24]} 25. Nd4 {[%emt 0:00:39]} b5 {[%emt 0:00:15]} 26. Bf2 {[%emt 0:04:02]} Qh5 {[%emt 0:01:42]} 27. Nb3 {[%emt 0:02:59]} Bd6 {[%emt 0:00:43]} 28. Bg3 {[%emt 0:00:14]} Bxg3 {[%emt 0:01:07]} 29. hxg3 {[%emt 0:00:01]} Qe5 {[%emt 0:00:40]} 30. Kf2 {[%emt 0:03:38]} Qd5 {[%emt 0:05:36]} 31. Nd4 {[%emt 0:03:43]} Rd8 {[%emt 0:00:10]} 32. Kf1 {[%emt 0:01:18]} Qg5 {[%emt 0:00:35]} 33. Kf2 {[%emt 0:03:01]} Nh5 {[%emt 0:00:46]} 34. g4 {[%emt 0:00:02]} Qh4+ {[%emt 0:00:09]} 35. g3 {[%emt 0:02:01]} Nxg3 {[%emt 0:04:08]} 36. Qc2 {[%emt 0:00:37]} Ne4+ {[%emt 0:00:20]} 37. Kg2 {[%emt 0:02:06]} Qg3+ {[%emt 0:00:58]} 38. Kf1 {[%emt 0:00:37]} Qh3+ {[%emt 0:03:26]} 39. Qg2 {[%emt 0:01:14]} Qxg2+ {[%emt 0:00:57]} 40. Kxg2 {[%emt 0:00:02]} Ng5 {[%emt 0:00:44]} 41. Be2 {[%emt 0:17:40]} Ke7 {[%emt 0:00:00]} 42. e4 {[%emt 0:00:00]} g6 {[%emt 0:00:00]} 43. b4 {[%emt 0:00:00]} Rc8 {[%emt 0:01:19]} 44. Nb3 {[%emt 0:00:00]} Rc3 {[%emt 0:03:08]} 45. Nc5 {[%emt 0:00:00]} Bc8 {[%emt 0:00:12]} 46. Rd3 {[%emt 0:00:00]} Rc2 {[%emt 0:00:50]} 47. Kf1 {[%emt 0:00:00]} Nh3 {[%emt 0:00:50]} 48. Bd1 {[%emt 0:00:00]} Rc1 {[%emt 0:02:13]} 49. Ke1 {[%emt 0:00:00]} Nf4 {[%emt 0:00:30]} 50. Rb3 {[%emt 0:00:00]} h5 {[%emt 0:03:25]} 51. Nd3 {[%emt 0:02:06]} Nxd3+ {[%emt 0:00:34]} 52. Rxd3 {[%emt 0:00:02]} hxg4 {[%emt 0:00:41]} 53. fxg4 {[%emt 0:00:18]} e5 {[%emt 0:01:36]} 54. Kd2 {[%emt 0:01:10]} Rc4 {[%emt 0:00:30]} 55. Bf3 {[%emt 0:01:04]} Bb7 {[%emt 0:01:59]} 56. Ke3 {[%emt 0:00:31]} f5 {[%emt 0:01:36]} 57. gxf5 {[%emt 0:03:01]} gxf5 {[%emt 0:00:13]} 58. exf5 {[%emt 0:00:34]} e4 {[%emt 0:01:19]} 59. Bxe4 {[%emt 0:01:23]} Rxe4+ {[%emt 0:00:09]} 60. Kd2 {[%emt 0:00:11]} Re5 {[%emt 0:00:59]} 61. Re3 {[%emt 0:01:22]} Be4 {[%emt 0:02:07]} 62. Kc3 {[%emt 0:00:31]} Kf6 {[%emt 0:00:49]} 63. Rh3 {[%emt 0:01:22]} Kxf5 {[%emt 0:00:33]} 64. Rh6 {[%emt 0:00:30]} Re6 {[%emt 0:00:24]} 65. Rxe6 {[%emt 0:00:31]} Kxe6 {[%emt 0:00:07]} 66. Kd4 {[%emt 0:00:07]} Bb7 {[%emt 0:00:45]} 67. Kc5 {[%emt 0:00:13]} Kd7 {[%emt 0:00:24]} 68. Kb6 {[%emt 0:00:22]} Bc8 {[%emt 0:00:12]} 69. Kc5 {[%emt 0:00:59]} Kc7 {[%emt 0:00:18]} 70. Kd5 {[%emt 0:00:26]} Bb7+ {[%emt 0:00:19]} 71. Kc5 {[%emt 0:00:33]} Ba8 {[%emt 0:00:14]} 72. Kd4 {[%emt 0:00:30]} Kd6 {[%emt 0:00:04]} 73. Ke3 {[%emt 0:00:24]} Ke5 {[%emt 0:00:59]} 74. Kd3 {[%emt 0:00:13]} Bd5 {[%emt 0:00:18]} 75. Kc3 {[%emt 0:00:51]} Ke4 {[%emt 0:00:07]} 76. Kc2 {[%emt 0:00:33]} Kd4 {[%emt 0:00:27]} 77. Kd2 {[%emt 0:00:18]} Bb3 {[%emt 0:00:19]} 78. Kc1 {[%emt 0:00:16]} Kc3 {[%emt 0:00:17]} 79. Kb1 {[%emt 0:00:19]} Bc4 {[%emt 0:00:39]} 80. a4 {[%emt 0:00:45]} Kxb4 {[%emt 0:00:52]} 0-1

[Event "GER-ch Youth-U18w 2022"]
[Site "Willingen"]
[Date "2022.06.09"]
[Round "7.11"]
[White "Kieckbusch, Lotta"]
[Black "Sokyrko, Sofiia"]
[Result "0-1"]
[ECO "C40"]
[WhiteElo "1207"]
[BlackElo "1368"]
[Annotator "NA RC COMBH"]
[PlyCount "58"]
[EventDate "2022.06.05"]
[EventType "swiss"]
[EventRounds "9"]
[EventCountry "GER"]
[SourceTitle "playchess.com"]
[Source "ChessBase"]
[SourceQuality "1"]
[TimeControl "40/4500+30:900+30"]

1. e4 {[%emt 0:00:00]} e5 {[%emt 0:00:00]} 2. Nf3 {[%emt 0:00:00]} d5 {[%emt 0:00:00]} 3. Nxe5 {[%emt 0:00:00]} Bd6 {[%emt 0:00:00]} 4. d4 {[%emt 0:00:00]} dxe4 {[%emt 0:00:00]} 5. Bc4 {[%emt 0:00:00]} Bxe5 6. Qh5 {[%emt 0:00:00]} Qe7 {[%emt 0:00:00]} 7. Qxe5 {[%emt 0:00:00]} Qxe5 {[%emt 0:00:00]} 8. dxe5 {[%emt 0:00:00]} Nc6 {[%emt 0:00:00]} 9. Nc3 {[%emt 0:00:00]} Nge7 {[%emt 0:00:00]} 10. Nb5 {[%emt 0:00:00]} O-O {[%emt 0:00:00]} 11. Nxc7 {[%emt 0:00:00]} Rb8 {[%emt 0:00:00]} 12. Bg5 {[%emt 0:07:49]} Ng6 {[%emt 0:00:00]} 13. e6 {[%emt 0:05:27]} fxe6 {[%emt 0:00:00]} 14. Nxe6 {[%emt 0:02:14]} Bxe6 {[%emt 0:00:00]} 15. Bxe6+ {[%emt 0:00:13]} Kh8 {[%emt 0:00:00]} 16. Be3 {[%emt 0:07:40]} Rbd8 {[%emt 0:00:08]} 17. Bb3 {[%emt 0:05:35]} Nh4 {[%emt 0:07:40]} 18. Bg5 {[%emt 0:25:20]} Nxg2+ {[%emt 0:04:58]} 19. Kf1 {[%emt 0:00:38]} e3 {[%emt 0:10:54]} 20. Kxg2 {[%emt 0:00:31]} Rxf2+ {[%emt 0:00:08]} 21. Kg3 {[%emt 0:02:55]} Rdf8 {[%emt 0:00:09]} 22. Rae1 {[%emt 0:10:11]} e2 {[%emt 0:00:56]} 23. Bc4 {[%emt 0:01:05]} R8f3+ {[%emt 0:00:20]} 24. Kh4 {[%emt 0:01:53]} h6 {[%emt 0:00:10]} 25. Rxe2 {[%emt 0:10:10]} hxg5+ {[%emt 0:00:08]} 26. Kxg5 {[%emt 0:01:17]} Rf5+ {[%emt 0:00:10]} 27. Kg6 {[%emt 0:02:23]} Ne5+ {[%emt 0:00:42]} 28. Rxe5 {[%emt 0:00:12]} Rxe5 {[%emt 0:00:05]} 29. Rd1 {[%emt 0:00:34]} Rf6# {[%emt 0:00:12]} 0-1

[Event "GER-ch Youth-U18w 2022"]
[Site "Willingen"]
[Date "2022.06.10"]
[Round "8.1"]
[White "Dartmann Aubanell, Catriona"]
[Black "Bardorz, Jana"]
[Result "1-0"]
[ECO "C77"]
[WhiteElo "1874"]
[BlackElo "1974"]
[Annotator "TA"]
[PlyCount "98"]
[EventDate "2022.06.05"]
[EventType "swiss"]
[EventRounds "9"]
[EventCountry "GER"]
[SourceTitle "playchess.com"]
[Source "ChessBase"]
[SourceQuality "1"]
[TimeControl "40/4500+30:900+30"]

{[%evp 19,98,24,39,35,34,6,12,-82,0,-8,-12,-12,8,10,33,20,41,12,45,-18,-8,-9,-11,-10,0,0,0,0,16,-11,-4,-10,0,-43,81,81,84,80,83,72,105,112,177,105,96,15,345,334,401,375,335,375,199,206,1023,1008,2016,1789,12031,8832,1979,2172,1905,1095,12836,12836,12839,12839,12841,12840,12840,12833,12840,12840,12845,12846,12846,12846,27999,27999,27999]} 1. e4 {[%emt 0:00:00]} e5 {[%emt 0:00:00]} 2. Nf3 {[%emt 0:00:00]} Nc6 {[%emt 0:00:00]} 3. Bb5 {[%emt 0:00:00]} a6 {[%emt 0:00:00]} 4. Ba4 {[%emt 0:00:00]} Nf6 {[%emt 0:00:00]} 5. d3 {[%emt 0:00:00]} d6 {[%emt 0:00:00]} 6. c3 {[%emt 0:00:00]} g6 {[%emt 0:00:00]} 7. O-O {[%emt 0:00:00]} Bg7 {[%emt 0:00:00]} 8. Re1 {[%emt 0:00:00]} O-O {[%emt 0:00:00]} 9. Nbd2 {[%emt 0:00:00]} Nd7 {[%emt 0:00:00]} 10. Nf1 {[%emt 0:01:00]} Nc5 {[%emt 0:00:00]} 11. Bc2 {[%emt 0:00:31] C77: Ruy Lopez: 3...a6 4 Ba4 Nf6, unusual lines.} Ne6 {[%emt 0:00:00] Prevents d4.} 12. Be3 {[%emt 0:06:21]} f5 {[%emt 0:00:00] [#]} 13. d4 $146 {[%emt 0:06:20]} (13. Bc1 $11 {remains equal.}) ({Predecessor:} 13. exf5 gxf5 14. d4 e4 15. d5 exf3 16. dxc6 fxg2 17. Ng3 f4 18. Qh5 Ng5 19. h4 {0-1 (56) El Taher,F (2485)-Aleksandrov,A (2591) New Delhi/Teheran 2000}) 13... fxe4 {[%emt 0:03:48]} (13... f4 $17 14. d5 fxe3 15. Rxe3 Bh6) 14. Bxe4 {[%emt 0:00:59]} d5 {[%emt 0:01:02] White must now prevent ...exd4.} 15. Bc2 {[%emt 0:03:01]} e4 {[%emt 0:02:02]} 16. N3d2 {[%emt 0:01:49][%cal Od2e4]} Ne7 {[%emt 0:12:50][%cal Bc6e7,Be7f5,Bf5e3][%mdl 32]} 17. f3 {[%emt 0:05:09]} exf3 {[%emt 0:03:26]} 18. Nxf3 {[%emt 0:00:04]} Nf5 {[%emt 0:04:18]} 19. Qd2 {[%emt 0:03:26]} ({White should try} 19. Bxf5 $14 Rxf5 20. Qd2) 19... Nxe3 $11 {[%emt 0:05:39]} 20. Nxe3 {[%emt 0:00:21]} Nf4 {[%emt 0:02:21]} 21. Rf1 {[%emt 0:10:13]} Bh6 {[%emt 0:05:42]} 22. Kh1 {[%emt 0:06:06][%cal Oe3d5]} Be6 {[%emt 0:02:34]} 23. Rae1 {[%emt 0:01:47]} Qf6 {[%emt 0:02:23]} 24. Qf2 {[%emt 0:05:50]} Rae8 {[%emt 0:02:15]} 25. Qg3 {[%emt 0:03:39]} Kh8 {[%emt 0:17:18]} 26. Ne5 {[%emt 0:08:03] [#]} Nh5 {[%emt 0:05:06]} (26... Ne2 $1 $15 {keeps the upper hand.} 27. Qf3 (27. Nxg6+ $2 hxg6 28. Qxg6 Qxg6 $19) 27... Qxf3 28. Rxf3 Rxf3 29. gxf3 Nf4) 27. Nxg6+ $1 $16 {[%emt 0:02:52]} hxg6 {[%emt 0:03:15]} 28. Qxg6 {[%emt 0:00:07]} Qxg6 {[%emt 0:01:21]} 29. Bxg6 {[%emt 0:00:02]} Bxe3 {[%emt 0:09:51]} 30. Bxe8 {[%emt 0:00:39]} Rxf1+ {[%emt 0:01:17]} 31. Rxf1 {[%emt 0:00:02]} Nf4 {[%emt 0:00:35]} 32. g3 {[%emt 0:05:26]} (32. Rf3 $16 Bc1 33. Rf1) 32... Bf5 $2 {[%emt 0:02:06][%mdl 8192] This move loses the game for Black.} 33. Rxf4 $18 {[%emt 0:00:33]} Be4+ {[%emt 0:00:11] [#]} 34. Rxe4 $1 {[%emt 0:00:06]} dxe4 {[%emt 0:00:03][%mdl 4096] Endgame KB-KB} 35. Bg6 {[%emt 0:00:17]} Bc1 {[%emt 0:00:18]} 36. Bxe4 {[%emt 0:00:14]} Bxb2 $2 {[%emt 0:00:22]} (36... c6 37. b3 Bb2) 37. Bxb7 {[%emt 0:00:25]} Bxc3 {[%emt 0:00:28]} 38. Bxa6 {[%emt 0:00:19]} Bxd4 {[%emt 0:00:06]} 39. a4 {[%emt 0:01:28]} Kg7 {[%emt 0:00:16]} 40. Kg2 {[%emt 0:00:37]} Kf6 {[%emt 0:00:23]} 41. Kf3 {[%emt 0:15:40] h4 is the strong threat.} Ke5 {[%emt 0:18:30]} 42. g4 {[%emt 0:04:12][%cal Bg3g4,Bg4g5,Bg5g6][%mdl 32]} Bc3 {[%emt 0:00:00]} 43. g5 {[%emt 0:00:00]} Bd2 {[%emt 0:00:00]} 44. h4 {[%emt 0:00:00]} c5 {[%emt 0:00:00]} 45. g6 {[%emt 0:00:00]} Bh6 {[%emt 0:00:00]} 46. a5 {[%emt 0:00:00][%cal Ba4a5,Ba5a6][%mdl 32]} Kd4 {[%emt 0:00:00]} 47. Bb5 {[%emt 0:00:00]} c4 {[%emt 0:00:00] [#]} 48. Bxc4 $1 {[%emt 0:00:00][%mdl 512]} Kxc4 {[%emt 0:00:00]} (48... Bg7 49. a6) 49. a6 {[%emt 0:00:00]} Kd5 {Weighted Error Value: White=0.25 (precise) /Black=0.39} 1-0

[Event "GER-ch Youth-U18w 2022"]
[Site "Willingen"]
[Date "2022.06.10"]
[Round "8.2"]
[White "Rudolph, Eva"]
[Black "Falke, Ornella"]
[Result "0-1"]
[ECO "B92"]
[WhiteElo "1860"]
[BlackElo "1844"]
[Annotator "NA RC COMBH"]
[PlyCount "127"]
[EventDate "2022.06.05"]
[EventType "swiss"]
[EventRounds "9"]
[EventCountry "GER"]
[SourceTitle "playchess.com"]
[Source "ChessBase"]
[SourceQuality "1"]
[TimeControl "40/4500+30:900+30"]

1. e4 {[%emt 0:00:00]} c5 {[%emt 0:00:00]} 2. Nf3 {[%emt 0:00:00]} d6 {[%emt 0:00:00]} 3. d4 {[%emt 0:00:00]} cxd4 {[%emt 0:00:00]} 4. Nxd4 {[%emt 0:00:00]} Nf6 {[%emt 0:00:00]} 5. Nc3 {[%emt 0:00:00]} a6 {[%emt 0:00:00]} 6. Be2 {[%emt 0:00:00]} e5 {[%emt 0:00:00]} 7. Nb3 {[%emt 0:00:00]} Be7 {[%emt 0:00:00]} 8. Bg5 {[%emt 0:00:00]} Be6 {[%emt 0:00:00]} 9. Bxf6 {[%emt 0:00:00]} Bxf6 {[%emt 0:00:00]} 10. Qd3 {[%emt 0:04:25]} Be7 {[%emt 0:00:00] outshines the older 10...Nc6.} 11. O-O {[%emt 0:04:12]} Nd7 {[%emt 0:00:00]} 12. Rad1 {[%emt 0:04:25] [#]} Rc8 $146 {[%emt 0:06:04]} ({Predecessor:} 12... Nf6 13. Nd5 Nxd5 14. exd5 Bd7 15. c4 O-O 16. c5 f5 17. f4 e4 18. Qe3 Rc8 19. c6 bxc6 20. dxc6 Rxc6 21. Nd4 Qb6 22. Bc4+ Rxc4 {0-1 (22) Spitzl,V (2319)-Perez Gormaz,M (2389) Chess.com INT 2022}) 13. Rfe1 {[%emt 0:09:20]} O-O {[%emt 0:01:07]} 14. Bf3 {[%emt 0:15:47]} Kh8 {[%emt 0:04:44]} (14... Nb6 $15 {might be stronger.}) 15. Nd2 {[%emt 0:03:27]} (15. Nd5 $11) 15... Qb6 {[%emt 0:10:01]} 16. b3 {[%emt 0:05:36]} (16. Rb1 $15) 16... Qc5 {[%emt 0:02:40]} 17. Ndb1 {[%emt 0:02:45]} b5 {[%emt 0:01:53]} 18. a3 {[%emt 0:06:05]} Rfd8 {[%emt 0:06:38]} 19. Re2 {[%emt 0:01:02]} Nf6 {[%emt 0:01:16]} 20. h3 {[%emt 0:04:03]} g6 {[%emt 0:03:02]} 21. Qd2 {[%emt 0:03:37]} Kg7 {[%emt 0:01:12]} 22. Nd5 {[%emt 0:05:19]} (22. Qe1 $17) 22... Nxd5 {[%emt 0:02:26]} 23. exd5 {[%emt 0:00:02]} Bd7 {[%emt 0:00:28]} 24. c3 {[%emt 0:03:20]} f5 {[%emt 0:02:13]} 25. Ree1 {[%emt 0:00:06]} h6 {[%emt 0:00:54]} 26. Be2 {[%emt 0:01:07]} Bh4 {[%emt 0:01:34]} 27. Bf1 {[%emt 0:00:26]} Rf8 {[%emt 0:01:12]} 28. c4 {[%emt 0:03:02]} Qc7 {[%emt 0:00:40]} 29. Qe3 {[%emt 0:00:46]} Rce8 {[%emt 0:04:50]} 30. cxb5 {[%emt 0:00:57]} axb5 {[%emt 0:00:13]} 31. Qc3 {[%emt 0:01:36]} Qb6 {[%emt 0:02:44]} 32. Qe3 {[%emt 0:00:11]} Qd8 {[%emt 0:00:14]} 33. Nc3 {[%emt 0:01:42]} Qa5 {[%emt 0:06:40]} 34. Ra1 {[%emt 0:01:52]} Bg5 {[%emt 0:00:24]} 35. Qd3 {[%emt 0:01:09]} (35. b4 $17 Qc7 36. Qd3) 35... e4 {[%emt 0:00:41]} 36. Qc2 {[%emt 0:01:38]} Rc8 {[%emt 0:00:34]} 37. b4 {[%emt 0:00:42]} Qc7 {[%emt 0:00:15]} 38. Rac1 {[%emt 0:01:06]} Bxc1 {[%emt 0:01:52]} 39. Rxc1 {[%emt 0:00:01]} Qb6 {[%emt 0:01:02]} 40. Qb2 {[%emt 0:00:47]} Qd4 {[%emt 0:00:42]} 41. Rc2 {[%emt 0:00:00]} Rb8 {[%emt 0:00:00]} 42. Rd2 {[%emt 0:00:00]} Qe5 43. a4 {[%emt 0:00:44]} bxa4 {[%emt 0:00:00]} 44. b5 {[%emt 0:00:26]} Rfc8 {[%emt 0:00:00]} 45. Rc2 {[%emt 0:06:59]} Rc5 {[%emt 0:00:00]} 46. b6 {[%emt 0:01:28]} Kf6 {[%emt 0:02:18]} 47. Qb4 {[%emt 0:02:34]} Bc8 {[%emt 0:03:06]} 48. Qb2 {[%emt 0:05:49]} (48. Qxa4 $142 Rxb6 49. Nd1) 48... Bb7 {[%emt 0:02:41]} 49. Qb4 {[%emt 0:00:19]} Bxd5 $2 {[%emt 0:01:26]} (49... Rbc8 50. Qxa4 Rxc3 51. Rxc3 Rxc3) 50. Nxd5+ {[%emt 0:00:06]} Qxd5 {[%emt 0:00:50]} 51. Rd2 {[%emt 0:00:46] [#]} Rxb6 $3 {[%emt 0:06:04]} 52. Qxb6 {[%emt 0:02:00]} Qxd2 {[%emt 0:00:05]} 53. Qd8+ {[%emt 0:00:11]} Ke6 {[%emt 0:07:00]} 54. Qe8+ {[%emt 0:00:00]} Kd5 {[%emt 0:09:26]} 55. Qf7+ {[%emt 0:00:24]} Kd4 {[%emt 0:01:06]} 56. Qf6+ {[%emt 0:00:25]} Re5 {[%emt 0:00:27]} 57. Qxd6+ {[%emt 0:00:38]} Rd5 {[%emt 0:00:07]} 58. Qf6+ {[%emt 0:01:14]} Kc5 {[%emt 0:00:07]} 59. Qe7+ {[%emt 0:00:41]} Kb6 {[%emt 0:01:20]} 60. Qf6+ {[%emt 0:01:46]} Rd6 {[%emt 0:01:17]} 61. Qe5 {[%emt 0:00:46]} Qb4 {[%emt 0:00:24]} 62. Qe8 $19 {[%emt 0:00:32]} Qa5 {[%emt 0:02:05]} 63. Qa8 {[%emt 0:00:30]} (63. Qb8+ $19 Kc5 64. Qc8+ Kd4 65. Qf8) 63... Qb5 $4 {[%emt 0:00:30]} (63... Qxa8 64. Bc4 a3 65. Kh1 Rd2 66. Kg1 a2 67. g4 e3 68. Be2 Rxe2 69. Kh2 Qb8+ 70. Kh1 a1=Q+ 71. Kg2 Rxf2#) 64. Qb7+ $4 {[%emt 0:00:34]} 0-1